bitfinex-derivatives/quotes_BNBF0:USTF0_20250630
["timestamp","ask_amount","ask_price","bid_price","bid_amount"]
[1751304111265,0.26422587,659.09,658.56,1.1229623]
[1751304111464,0.26422587,659.09,658.57,1.1229623]
[1751304111764,0.26422587,659.09,658.37,2.442]
[1751304111963,0.26422587,659.09,658.38,1.12332154]
[1751304112163,0.26422587,659.09,658.37,2.442]
[1751304112164,0.26422587,659.09,658.39,1.12332154]
[1751304112367,0.26422587,659.09,658.4,1.12332154]
[1751304112569,0.26422587,659.09,658.41,1.12332154]
[1751304112766,0.26422587,659.09,658.42,1.12332154]
[1751304112965,0.26422587,659.09,658.43,1.12332154]
[1751304113170,0.26422587,659.09,658.44,1.12332154]
[1751304113366,0.26422587,659.09,658.45,1.12332154]
[1751304113670,0.26422587,659.09,658.46,1.12332154]
[1751304113966,0.26422587,659.09,658.47,1.12332154]
[1751304114168,0.26422587,659.09,658.48,1.12332154]
[1751304114370,0.26422587,659.09,658.49,1.12332154]
[1751304114670,0.26422587,659.09,658.5,1.12332154]
[1751304114867,0.26422587,659.09,658.51,1.12332154]
[1751304115068,0.26422587,659.09,658.52,1.12332154]
[1751304115268,0.26422587,659.09,658.53,1.12332154]
[1751304115469,0.26422587,659.09,658.54,1.12332154]
[1751304115668,0.26422587,659.09,658.55,1.12332154]
[1751304115873,0.26422587,659.09,658.56,1.12332154]
[1751304116069,0.26422587,659.09,658.57,1.12332154]
[1751304116272,0.26422587,659.09,658.37,2.442]
[1751304116472,0.26422587,659.09,658.38,1.12362914]
[1751304116673,0.26422587,659.09,658.39,1.12362914]
[1751304116872,0.26422587,659.09,658.4,1.12362914]
[1751304117073,0.26422587,659.09,658.41,1.12362914]
[1751304117272,0.26422587,659.09,658.42,1.12362914]
[1751304117472,0.26422587,659.09,658.43,1.12362914]
[1751304117673,0.26422587,659.09,658.44,1.12362914]
[1751304117876,0.26422587,659.09,658.45,1.12362914]
[1751304118176,0.26422587,659.09,658.46,1.12362914]
[1751304118372,0.26422587,659.09,658.47,1.12362914]
[1751304118576,0.26422587,659.09,658.48,1.12362914]
[1751304118877,0.26422587,659.09,658.49,1.12362914]
[1751304119077,0.26422587,659.09,658.5,1.12362914]
[1751304119277,0.26422587,659.09,658.51,1.12362914]
[1751304119477,0.26422587,659.09,658.52,1.12362914]
[1751304119678,0.26422587,659.09,658.53,1.12362914]
[1751304119979,0.26422587,659.09,658.54,1.12362914]
[1751304120274,0.26422587,659.09,658.55,1.12362914]
[1751304120479,0.26422587,659.09,658.37,2.442]
[1751304120679,0.26422587,659.09,658.38,1.12371993]
[1751304120875,0.26422587,659.09,658.39,1.12371993]
[1751304121079,0.26422587,659.09,658.4,1.12371993]
[1751304121374,0.26422587,659.09,658.41,1.12371993]
[1751304121575,0.26422587,659.09,658.42,1.12371993]
[1751304121779,0.26422587,659.09,658.43,1.12371993]
[1751304121976,0.26422587,659.09,658.44,1.12371993]
[1751304122175,0.26422587,659.09,658.45,1.12371993]
[1751304122376,0.26422587,659.09,658.46,1.12371993]
[1751304122677,0.26422587,659.09,658.47,1.12371993]
[1751304122878,0.26422587,659.09,658.48,1.12371993]
[1751304123176,0.26422587,659.09,658.37,2.442]
[1751304123380,0.26422587,659.09,658.38,1.12426573]
[1751304123578,0.26422587,659.09,658.39,1.12426573]
[1751304123777,0.26422587,659.09,658.4,1.12426573]
[1751304123981,0.26422587,659.09,658.41,1.12426573]
[1751304124181,0.26422587,659.09,658.42,1.12426573]
[1751304124481,0.26422587,659.09,658.43,1.12426573]
[1751304124678,0.26422587,659.09,658.44,1.12426573]
[1751304124882,0.26422587,659.09,658.45,1.12426573]
[1751304125180,0.26422587,659.09,658.46,1.12426573]
[1751304125482,0.26422587,659.09,658.47,1.12426573]
[1751304125781,0.26422587,659.09,658.37,2.442]
[1751304125979,0.26422587,659.09,658.38,1.12449057]
[1751304126178,0.26422587,659.09,658.39,1.12449057]
[1751304126480,0.26422587,659.09,658.37,2.442]
[1751304126481,0.26422587,659.09,658.4,1.12449057]
[1751304126677,0.26422587,659.09,658.41,1.12449057]
[1751304126877,0.26422587,659.09,658.42,1.12449057]
[1751304127081,0.26422587,659.09,658.43,1.12449057]
[1751304127278,0.26422587,659.09,658.44,1.12449057]
[1751304127477,0.26422587,659.09,658.45,1.12449057]
[1751304127681,0.26422587,659.09,658.46,1.12449057]
[1751304127881,0.26422587,659.09,658.47,1.12449057]
[1751304128181,0.26422587,659.09,658.37,2.442]
[1751304128382,0.26422587,659.09,658.38,1.12470037]
[1751304128579,0.26422587,659.09,658.39,1.12470037]
[1751304128777,0.26422587,659.09,658.4,1.12470037]
[1751304128977,0.26422587,659.09,658.41,1.12470037]
[1751304129283,0.26422587,659.09,658.37,2.442]
[1751304129484,0.26422587,659.09,658.38,1.12530208]
[1751304129680,0.26422587,659.09,658.39,1.12530208]
[1751304129879,0.26422587,659.09,658.4,1.12530208]
[1751304130082,0.26422587,659.09,658.37,2.442]
[1751304130083,0.26422587,659.09,658.41,1.12530208]
[1751304130281,0.26422587,659.09,658.37,2.442]
[1751304130480,0.26422587,659.09,658.38,1.12523487]
[1751304130679,0.26422587,659.09,658.39,1.12523487]
[1751304130885,0.26422587,659.09,658.4,1.12523487]
[1751304131082,0.26422587,659.09,658.37,2.442]
[1751304131285,0.26422587,659.09,658.38,1.12523498]
[1751304131487,0.26422587,659.09,658.39,1.12523498]
[1751304131683,0.26422587,659.09,658.4,1.12523498]
[1751304131886,0.26422587,659.09,658.37,2.442]
[1751304132087,0.26422587,659.09,658.38,1.12521375]
[1751304132382,0.26422587,659.09,658.39,1.12521375]
[1751304132688,0.26422587,659.09,658.37,2.442]
[1751304132689,0.26422587,659.09,658.4,1.12521375]
[1751304132881,0.26422587,659.09,658.37,2.442]
[1751304133085,0.26422587,659.09,658.38,1.12511819]
[1751304133285,0.26422587,659.09,658.39,1.12511819]
[1751304133483,0.26422587,659.09,658.4,1.12511819]
[1751304133687,0.26422587,659.09,658.37,2.442]
[1751304133986,0.26422587,659.09,658.38,1.12498281]
[1751304134282,0.26422587,659.09,658.39,1.12498281]
[1751304134487,0.26422587,659.09,658.37,2.442]
[1751304134786,0.26422587,659.09,658.38,1.12485649]
[1751304134986,0.26422587,659.09,658.39,1.12485649]
[1751304135282,0.26422587,659.09,658.37,2.442]
[1751304135482,0.26422587,659.09,658.38,1.12472566]
[1751304135685,0.26422587,659.09,658.39,1.12472566]
[1751304135882,0.26422587,659.09,658.37,2.442]
[1751304136084,0.26422587,659.09,658.38,1.12469212]
[1751304136283,0.26422587,659.09,658.37,2.442]
[1751304136482,0.26422587,659.09,658.38,1.12459493]
[1751304136684,0.26422587,659.09,658.37,2.442]
[1751304136883,0.26422587,659.09,658.38,1.12459493]
[1751304137085,0.26422587,659.09,658.37,2.442]
[1751304137384,0.26422587,659.09,658.38,1.12457196]
[1751304137585,0.26422587,659.09,658.37,2.442]
[1751304137885,0.26422587,659.09,658.38,1.12449211]
[1751304138084,0.26422587,659.09,658.37,2.442]
[1751304142385,0.26422587,659.09,658.26,2.618]
[1751304142589,0.26422587,659.09,658.27,1.12408513]
[1751304142784,0.26422587,659.09,658.28,1.12408513]
[1751304142987,0.26422587,659.09,658.29,1.12408513]
[1751304143186,0.26422587,659.09,658.3,1.12408513]
[1751304143389,0.26422587,659.09,658.31,1.12408513]
[1751304143589,0.26422587,659.09,658.32,1.12408513]
[1751304143787,0.26422587,659.09,658.26,2.618]
[1751304143987,0.26422587,659.09,658.27,1.12400455]
[1751304144286,0.26422587,659.09,658.28,1.12400455]
[1751304144486,0.26422587,659.09,658.29,1.12400455]
[1751304144690,0.26422587,659.09,658.3,1.12400455]
[1751304144886,0.26422587,659.09,658.31,1.12400455]
[1751304145190,0.26422587,659.09,658.32,1.12382609]
[1751304145485,0.26422587,659.09,658.26,2.618]
[1751304145690,0.26422587,659.09,658.27,1.12365404]
[1751304145885,0.26422587,659.09,658.28,1.12365404]
[1751304146088,0.26422587,659.09,658.29,1.12365404]
[1751304146289,0.26422587,659.09,658.3,1.12365404]
[1751304146485,0.26422587,659.09,658.31,1.12365404]
[1751304146687,0.26422587,659.09,658.27,2.958]
[1751304146990,0.26422587,659.09,658.28,1.12358262]
[1751304147186,0.26422587,659.09,658.29,1.12358262]
[1751304147387,0.26422587,659.09,658.3,1.12358262]
[1751304147586,0.26422587,659.09,658.27,2.958]
[1751304147787,0.26422587,659.09,658.28,1.12358878]
[1751304147990,0.26422587,659.09,658.29,1.12358878]
[1751304148189,0.26422587,659.09,658.3,1.12358878]
[1751304148485,0.26422587,659.09,658.27,2.958]
[1751304148689,0.26422587,659.09,658.28,1.12350544]
[1751304148890,0.26422587,659.09,658.29,1.12350544]
[1751304149086,0.26422587,659.09,658.27,2.958]
[1751304149291,0.26422587,659.09,658.28,1.12350534]
[1751304149489,0.26422587,659.09,658.29,1.12350534]
[1751304149688,0.26422587,659.09,658.3,1.12350534]
[1751304149888,0.26422587,659.09,658.31,1.12350534]
[1751304150194,0.26422587,659.09,658.27,2.958]
[1751304150389,0.26422587,659.09,658.28,1.12352188]
[1751304150692,0.26422587,659.09,658.29,1.12352188]
[1751304150992,0.26422587,659.09,658.3,1.12352188]
[1751304151186,0.26422587,659.09,658.31,1.12352188]
[1751304151388,0.26422587,659.09,658.27,2.958]
[1751304151588,0.26422587,659.09,658.28,1.12345164]
[1751304151891,0.26422587,659.09,658.29,1.12345164]
[1751304152090,0.26422587,659.09,658.27,2.958]
[1751304152091,0.26422587,659.09,658.3,1.12345164]
[1751304152290,0.26422587,659.09,658.31,1.12345164]
[1751304152489,0.26422587,659.09,658.27,2.958]
[1751304152690,0.26422587,659.09,658.28,1.12341739]
[1751304152888,0.26422587,659.09,658.29,1.12341739]
[1751304153089,0.26422587,659.09,658.3,1.12341739]
[1751304153389,0.26422587,659.09,658.31,1.12341739]
[1751304153593,0.26422587,659.09,658.27,2.958]
[1751304153793,0.26422587,659.09,658.28,1.12340583]
[1751304153989,0.26422587,659.09,658.29,1.12340583]
[1751304154193,0.26422587,659.09,658.3,1.12340583]
[1751304154391,0.26422587,659.09,658.31,1.12340583]
[1751304154596,0.26422587,659.09,658.27,2.958]
[1751304154794,0.26422587,659.09,658.28,1.12334586]
[1751304154990,0.26422587,659.09,658.29,1.12334586]
[1751304155195,0.26422587,659.09,658.3,1.12334586]
[1751304155391,0.26422587,659.09,658.31,1.12334586]
[1751304155596,0.26422587,659.09,658.32,1.12334586]
[1751304155895,0.26422587,659.09,658.27,2.958]
[1751304156095,0.26422587,659.09,658.28,1.12324881]
[1751304156296,0.26422587,659.09,658.29,1.12324881]
[1751304156597,0.26422587,659.09,658.3,1.12324881]
[1751304156896,0.26422587,659.09,658.31,1.12324881]
[1751304157093,0.26422587,659.09,658.32,1.12324881]
[1751304157290,0.26422587,659.09,658.33,1.12324881]
[1751304157494,0.26422587,659.09,658.27,2.958]
[1751304157692,0.26422587,659.09,658.28,1.12313012]
[1751304157896,0.26422587,659.09,658.29,1.12313012]
[1751304158096,0.26422587,659.09,658.3,1.12313012]
[1751304158396,0.26422587,659.09,658.31,1.12313012]
[1751304158593,0.26422587,659.09,658.32,1.12313012]
[1751304158794,0.26422587,659.09,658.33,1.12313012]
[1751304159097,0.26422587,659.09,658.27,2.958]
[1751304159394,0.26422587,659.09,658.28,1.12312505]
[1751304159697,0.26422587,659.09,658.29,1.12312505]
[1751304159993,0.26422587,659.09,658.3,1.12312505]
[1751304160197,0.26422587,659.09,658.31,1.12312505]
[1751304160399,0.26422587,659.09,658.32,1.12312505]
[1751304160596,0.26422587,659.09,658.27,2.958]
[1751304160898,0.26422587,659.09,658.28,1.12314787]
[1751304161198,0.26422587,659.09,658.29,1.12314787]
[1751304161398,0.26422587,659.09,658.3,1.12314787]
[1751304161697,0.26422587,659.09,658.31,1.12314787]
[1751304161894,0.26422587,659.09,658.32,1.12314787]
[1751304162100,0.26422587,659.09,658.33,1.12314787]
[1751304162394,0.26422587,659.09,658.34,1.12314787]
[1751304162597,0.26422587,659.09,658.27,2.958]
[1751304162598,0.26422587,659.09,658.35,1.12314787]
[1751304162797,0.26422587,659.09,658.36,1.12314787]
[1751304162995,0.26422587,659.09,658.37,1.12314787]
[1751304163200,0.26422587,659.09,658.38,1.12314787]
[1751304163500,0.26422587,659.09,658.39,1.12314787]
[1751304163800,0.26422587,659.09,658.4,1.12314787]
[1751304164100,0.2641657,658.96,658.41,1.12314787]
[1751304164296,0.2641657,658.96,658.42,1.12314787]
[1751304164499,0.2641657,658.96,658.27,2.958]
[1751304164697,0.2641657,658.96,658.28,1.12289931]
[1751304164898,0.2641657,658.96,658.29,1.12289931]
[1751304165096,0.2641657,658.96,658.3,1.12289931]
[1751304165300,0.2641657,658.96,658.31,1.12289931]
[1751304165498,0.2641657,658.96,658.32,1.12289931]
[1751304165696,0.2641657,658.96,658.33,1.12289931]
[1751304166000,0.2641657,658.96,658.34,1.12289931]
[1751304166197,0.2641657,658.96,658.35,1.12289931]
[1751304166400,0.2641657,658.96,658.36,1.12289931]
[1751304166597,0.2641657,658.96,658.37,1.12289931]
[1751304166798,0.2641657,658.96,658.38,1.12289931]
[1751304166999,0.2641657,658.96,658.39,1.12289931]
[1751304167196,0.2641657,658.96,658.4,1.12289931]
[1751304167397,0.2641657,658.96,658.41,1.12289931]
[1751304167603,0.2641657,658.96,658.42,1.12289931]
[1751304167905,0.2641657,658.96,658.27,2.958]
[1751304168105,0.2641657,658.96,658.28,1.12310507]
[1751304168305,0.2641657,658.96,658.27,2.958]
[1751304168306,0.2641657,658.96,658.29,1.12310507]
[1751304168505,0.2641657,658.96,658.3,1.12310507]
[1751304168703,0.2641657,658.96,658.31,1.12310507]
[1751304169006,0.2641657,658.96,658.32,1.12310507]
[1751304169207,0.2641657,658.96,658.33,1.12310507]
[1751304169408,0.2641657,658.96,658.34,1.12310507]
[1751304169705,0.2641657,658.96,658.35,1.12310507]
[1751304169907,0.2641657,658.96,658.36,1.12310507]
[1751304170106,0.2641657,658.96,658.37,1.12310507]
[1751304170307,0.2641657,658.96,658.38,1.12310507]
[1751304170506,0.2641657,658.96,658.39,1.12310507]
[1751304170703,0.2641657,658.96,658.4,1.12310507]
[1751304171003,0.2641657,658.96,658.41,1.12310507]
[1751304171206,0.2641657,658.96,658.42,1.12310507]
[1751304171404,0.2641657,658.96,658.43,1.12310507]
[1751304171707,0.2641657,658.96,658.44,1.12310507]
[1751304171908,0.2641657,658.96,658.45,1.12310507]
[1751304172107,0.2641657,658.96,658.46,1.12310507]
[1751304172308,0.2641657,658.96,658.47,1.12305162]
[1751304172604,0.2641657,658.96,658.27,2.958]
[1751304172804,0.2641657,658.96,658.28,1.12302792]
[1751304173104,0.2641657,658.96,658.29,1.12302792]
[1751304173404,0.2641657,658.96,658.3,1.12302792]
[1751304173605,0.2641657,658.96,658.31,1.12302792]
[1751304173908,0.2641657,658.96,658.32,1.12302792]
[1751304174105,0.2641657,658.96,658.33,1.12302792]
[1751304174303,0.2641657,658.96,658.34,1.12302792]
[1751304174503,0.2641657,658.96,658.35,1.12302792]
[1751304174709,0.2641657,658.96,658.36,1.12302792]
[1751304174912,0.2641657,658.96,658.37,1.12302792]
[1751304175208,0.2641657,658.96,658.38,1.12302792]
[1751304175409,0.2641657,658.96,658.39,1.12302792]
[1751304175604,0.2641657,658.96,658.4,1.12302792]
[1751304175807,3.78515061,659.63,658.41,1.12302792]
[1751304176005,3.78515061,659.63,658.42,1.12302792]
[1751304176212,0.2641667,659.02,658.43,1.12302792]
[1751304176412,3.78515061,659.63,658.44,1.12302792]
[1751304176613,3.78515061,659.63,658.45,1.12302792]
[1751304176614,0.26416369,659.34,658.45,1.12302792]
[1751304176811,0.26416369,659.34,658.46,1.12302792]
[1751304177015,0.26416369,659.34,658.47,1.12302792]
[1751304177315,0.26416369,659.34,658.27,2.958]
[1751304177515,0.26416369,659.34,658.28,1.1231145]
[1751304177711,0.26416369,659.34,658.29,1.1231145]
[1751304177914,0.26416369,659.34,658.3,1.1231145]
[1751304178113,0.26416369,659.34,658.31,1.1231145]
[1751304178316,0.26416369,659.34,658.32,1.1231145]
[1751304178519,0.26416369,659.34,658.33,1.1231145]
[1751304178714,0.26416369,659.34,658.34,1.1231145]
[1751304178919,0.26416369,659.34,658.35,1.1231145]
[1751304179220,0.26416369,659.34,658.36,1.1231145]
[1751304179516,0.26416369,659.34,658.37,1.1231145]
[1751304179719,0.26416369,659.34,658.38,1.1231145]
[1751304180019,0.26416369,659.34,658.39,1.1231145]
[1751304180215,0.26416369,659.34,658.4,1.1231145]
[1751304180514,0.26416369,659.34,658.41,1.1231145]
[1751304180716,0.26416369,659.34,658.42,1.1231145]
[1751304180917,0.26416369,659.34,658.43,1.1231145]
[1751304181115,0.26416369,659.34,658.44,1.1231145]
[1751304181320,0.26416369,659.34,658.45,1.1231145]
[1751304181517,0.26416369,659.34,658.46,1.1231145]
[1751304181817,0.26416369,659.34,658.47,1.1231145]
[1751304182019,0.26416369,659.34,658.48,1.1231145]
[1751304182218,0.26416369,659.34,658.49,1.1231145]
[1751304182418,0.26416369,659.34,658.5,1.1231145]
[1751304182620,0.26416369,659.34,658.51,1.1231145]
[1751304182818,0.26416369,659.34,658.52,1.1231145]
[1751304183019,0.26416369,659.34,658.53,1.1231145]
[1751304183222,0.26416369,659.34,658.47,3.36]
[1751304183415,0.26416369,659.34,658.48,1.12236701]
[1751304183619,0.26416369,659.34,658.49,1.12236701]
[1751304183818,0.26416369,659.34,658.5,1.12236701]
[1751304184017,0.26416369,659.34,658.51,1.12236701]
[1751304184219,0.26416369,659.34,658.52,1.12236701]
[1751304184423,0.26416369,659.34,658.47,3.36]
[1751304184722,0.26416369,659.34,658.48,1.12225147]
[1751304185024,0.26416369,659.34,658.49,1.12225147]
[1751304185224,0.26416369,659.34,658.5,1.12225147]
[1751304185420,0.26416369,659.34,658.51,1.12225147]
[1751304185622,0.26416369,659.34,658.47,3.36]
[1751304185820,0.26416369,659.34,658.48,1.12223182]
[1751304186020,0.26416369,659.34,658.49,1.12223182]
[1751304186319,0.26416369,659.34,658.5,1.12223182]
[1751304186619,0.26416369,659.34,658.47,3.36]
[1751304186824,0.26416369,659.34,658.48,1.1221604]
[1751304187119,0.26416369,659.34,658.49,1.1221604]
[1751304187323,0.26416369,659.34,658.5,1.1221604]
[1751304187518,0.26416369,659.34,658.51,1.1221604]
[1751304187819,0.26416369,659.34,658.47,3.36]
[1751304188123,0.26416369,659.34,658.48,1.12214636]
[1751304188323,0.26416369,659.34,658.49,1.12214636]
[1751304188524,0.26416369,659.34,658.5,1.12214636]
[1751304188724,0.26416369,659.34,658.51,1.12214636]
[1751304188924,0.26416369,659.34,658.47,3.36]
[1751304189224,0.26416369,659.34,658.48,1.12215987]
[1751304189424,0.26416369,659.34,658.47,3.36]
[1751304204534,0.26416369,659.34,658.48,2.491]
[1751304211744,0.26416369,659.34,658.49,3.3]
[1751304213538,4.0493143,659.34,658.49,3.3]
[1751304214145,3.78515061,659.33,658.49,3.3]
[1751304214646,0.26416369,659.34,658.49,3.3]
[1751304215141,3.78515061,659.33,658.49,3.3]
[1751304215846,3.78515061,659.31,658.49,3.3]
[1751304217848,3.78515061,659.3,658.49,3.3]
[1751304219247,3.78515061,659.29,658.49,3.3]
[1751304219847,0.26416369,659.34,658.49,3.3]
[1751304221453,4.0493143,659.34,658.49,3.3]
[1751304222149,3.78515061,659.32,658.49,3.3]
[1751304224653,3.78515061,659.29,658.49,3.3]
[1751304228251,0.26416369,659.34,658.49,3.3]
[1751304235657,0.26416369,659.34,658.5,2.69]
[1751304242261,0.26416369,659.34,658.51,3.153]
[1751304243963,4.0493143,659.34,658.51,3.153]
[1751304244568,3.78515061,659.26,658.51,3.153]
[1751304247570,3.78515061,659.22,658.51,3.153]
[1751304250676,0.26416369,659.34,658.51,3.153]
[1751304260681,4.0493143,659.34,658.51,3.153]
[1751304262277,4.0493143,659.34,658.5,2.69]
[1751304262278,0.26416369,659.34,658.5,2.69]
[1751304264878,4.0493143,659.34,658.5,2.69]
[1751304265681,4.0493143,659.34,658.51,1.868]
[1751304266481,3.78515061,659.31,658.51,1.868]
[1751304266979,3.78515061,659.32,658.51,1.868]
[1751304268481,0.26416369,659.34,658.51,1.868]
[1751304270682,0.26416369,659.34,658.52,1.83]
[1751304274884,4.0493143,659.34,658.52,1.83]
[1751304275889,0.26416369,659.34,658.52,1.83]
[1751304291103,0.26416369,659.34,658.52,3.647]
[1751304303615,4.0493143,659.34,658.52,3.647]
[1751304304216,3.78515061,659.33,658.52,3.647]
[1751304305713,4.0493143,659.34,658.52,3.647]
[1751304306313,0.26416369,659.34,658.52,3.647]
[1751304308819,0.26416369,659.34,658.52,1.817]
[1751304312117,0.26416369,659.34,658.53,2.147]
[1751304325534,3.78515061,659.82,658.53,2.147]
[1751304325833,0.26414264,659.14,658.53,2.147]
[1751304326033,3.78515061,659.82,658.53,2.147]
[1751304326633,3.78515061,659.8,658.53,2.147]
[1751304327235,0.26415266,659.49,658.53,2.147]
[1751304328933,0.26415266,659.49,658.54,2.184]
[1751304335141,3.78515061,659.65,658.54,2.184]
[1751304335443,0.2641657,659.26,658.54,2.184]
[1751304335644,3.78515061,659.64,658.54,2.184]
[1751304335849,3.78515061,659.74,658.54,2.184]
[1751304336340,3.78515061,659.71,658.54,2.184]
[1751304336545,3.78515061,659.71,658.55,1.12784539]
[1751304336744,0.26416068,659.42,658.56,1.12784539]
[1751304336938,0.26416068,659.42,658.54,2.184]
[1751304337139,0.26416068,659.42,658.55,1.12784539]
[1751304337444,0.26416068,659.42,658.56,1.12784539]
[1751304337740,0.26416068,659.42,658.54,2.184]
[1751304337944,0.26416068,659.42,658.55,1.12766453]
[1751304338243,0.26416068,659.42,658.54,2.184]
[1751304338442,0.26416068,659.42,658.55,1.12748976]
[1751304338639,0.26416068,659.42,658.54,2.184]
[1751304338839,0.26416068,659.42,658.55,1.1274898]
[1751304339044,0.26416068,659.42,658.54,2.184]
[1751304342748,3.78515061,659.4,658.54,2.184]
[1751304343649,3.78515061,659.38,658.54,2.184]
[1751304344248,3.78515061,659.37,658.54,2.184]
[1751304344744,3.78515061,659.37,658.55,2.911]
[1751304345948,3.78515061,659.36,658.55,2.911]
[1751304349445,3.78515061,659.34,658.55,2.911]
[1751304350452,0.26416068,659.42,658.55,2.911]
[1751304353154,4.04931129,659.42,658.55,2.911]
[1751304354257,3.78515061,659.4,658.55,2.911]
[1751304354656,3.78515061,659.39,658.55,2.911]
[1751304356462,3.78515061,659.41,658.55,2.911]
[1751304358962,0.26416068,659.42,658.55,2.911]
[1751304359561,0.26416068,659.42,658.56,3.629]
[1751304362167,3.78515061,659.39,658.56,3.629]
[1751304362766,0.26416068,659.42,658.56,3.629]
[1751304368964,4.04931129,659.42,658.56,3.629]
[1751304370469,4.04931129,659.42,658.57,2.188]
[1751304372668,3.78515061,659.37,658.57,2.188]
[1751304373165,3.78515061,659.36,658.57,2.188]
[1751304374169,0.26416068,659.42,658.57,2.188]
[1751304374170,3.78515061,659.35,658.57,2.188]
[1751304377373,3.78515061,659.34,658.57,2.188]
[1751304377873,3.78515061,659.31,658.57,2.188]
[1751304378075,0.26416068,659.42,658.57,2.188]
[1751304385077,0.26416068,659.42,658.58,2.18]
[1751304391281,0.26416068,659.42,658.59,2.504]
[1751304401591,3.79125171,659.4,658.59,2.504]
[1751304403695,3.79125171,659.37,658.59,2.504]
[1751304404597,3.79125171,659.38,658.59,2.504]
[1751304405298,3.79125171,659.39,658.59,2.504]
[1751304405794,0.26416068,659.42,658.59,2.504]
[1751304405795,3.79125171,659.38,658.59,2.504]
[1751304406798,3.79125171,659.16,658.59,2.504]
[1751304407393,3.79125171,659.17,658.59,2.504]
[1751304408600,3.79125171,659.15,658.59,2.504]
[1751304409101,3.79125171,659.13,658.59,2.504]
[1751304409996,3.79125171,659.15,658.59,2.504]
[1751304410502,3.79125171,659.16,658.59,2.504]
[1751304411197,3.79125171,659.18,658.59,2.504]
[1751304411601,3.79125171,659.19,658.59,2.504]
[1751304414906,3.79125171,659.26,658.59,2.504]
[1751304415509,3.79125171,659.25,658.59,2.504]
[1751304416409,3.79125171,659.26,658.59,2.504]
[1751304416806,3.79125171,659.25,658.59,2.504]
[1751304417412,3.79125171,659.24,658.59,2.504]
[1751304419526,3.79125171,659.22,658.59,2.504]
[1751304420513,3.79125171,659.21,658.59,2.504]
[1751304421111,0.26416068,659.42,658.59,2.504]
[1751304421112,3.79125171,659.15,658.59,2.504]
[1751304424118,3.79125171,659.16,658.59,2.504]
[1751304424717,3.79125171,659.09,658.59,2.504]
[1751304430420,3.79125171,659.08,658.59,2.504]
[1751304431124,3.79125171,659.18,658.59,2.504]
[1751304433124,3.79125171,659.19,658.59,2.504]
[1751304434223,3.79125171,659.17,658.59,2.504]
[1751304435728,3.79125171,659.16,658.59,2.504]
[1751304438828,3.79125171,659.15,658.59,2.504]
[1751304439826,3.79125171,659.19,658.59,2.504]
[1751304441534,3.79125171,659.21,658.59,2.504]
[1751304442533,3.79125171,659.2,658.59,2.504]
[1751304443538,3.79125171,659.22,658.59,2.504]
[1751304445636,3.79125171,659.21,658.59,2.504]
[1751304446633,3.79125171,659.22,658.59,2.504]
[1751304447841,0.26416068,659.42,658.59,2.504]
[1751304449540,0.26416068,659.42,658.06,0.26381924]
[1751304449740,0.26416068,659.42,658.07,1.13060652]
[1751304449937,0.26416068,659.42,658.08,1.13060652]
[1751304450137,0.26416068,659.42,658.09,1.13060652]
[1751304450337,0.26416068,659.42,658.1,1.13060652]
[1751304450541,0.26416068,659.42,658.11,1.13060652]
[1751304450841,0.26416068,659.42,658.12,1.13060652]
[1751304451042,0.26416068,659.42,658.13,1.13060652]
[1751304451239,0.26416068,659.42,658.14,1.13060652]
[1751304451438,0.26416068,659.42,658.15,1.13060652]
[1751304451636,0.26416068,659.42,658.16,1.13060652]
[1751304451839,0.26416068,659.42,658.17,1.13060652]
[1751304452040,0.26416068,659.42,658.18,1.13060652]
[1751304452239,0.26416068,659.42,658.19,1.13060652]
[1751304452443,0.26416068,659.42,658.2,1.13060652]
[1751304452643,0.26416068,659.42,658.21,1.13060652]
[1751304452942,0.26416068,659.42,658.22,1.13060652]
[1751304453137,0.26416068,659.42,658.23,1.13060652]
[1751304453442,0.26416068,659.42,658.24,1.13060652]
[1751304453742,0.26416068,659.42,658.25,1.13060652]
[1751304453938,0.26416068,659.42,658.26,1.13060652]
[1751304454140,0.26416068,659.42,658.27,1.13060652]
[1751304454338,0.26416068,659.42,658.28,1.13060652]
[1751304454544,0.26416068,659.42,658.29,1.13060652]
[1751304454742,0.26416068,659.42,658.17,2.331]
[1751304454743,0.26416068,659.42,658.3,1.13060652]
[1751304455044,0.26416068,659.42,658.31,1.13060652]
[1751304455240,0.26416068,659.42,658.17,2.331]
[1751304455542,0.26416068,659.42,658.18,1.13134607]
[1751304455742,0.26416068,659.42,658.19,1.13134607]
[1751304455945,0.26416068,659.42,658.2,1.13134607]
[1751304456145,0.26416068,659.42,658.21,1.13134607]
[1751304456440,0.26416068,659.42,658.22,1.13134607]
[1751304456645,0.26416068,659.42,658.23,1.13134607]